bitfinex/quotes_BTCUSD_20240811
["timestamp","ask_amount","ask_price","bid_price","bid_amount"]
[1723388814505,0.232256,60279.0,60273.0,0.116138]
[1723388814883,0.232265,60276.0,60271.0,0.078889]
[1723388815062,0.116135,60275.0,60274.0,0.00768563]
[1723388815481,0.116135,60275.0,60271.0,0.0712]
[1723388815685,0.116135,60275.0,60274.0,0.00766121]
[1723388815838,0.116135,60275.0,60271.0,0.0712]
[1723388816031,0.116135,60275.0,60272.0,0.00766345]
[1723388817354,0.116136,60274.0,60272.0,0.00766345]
[1723388817559,0.232241,60282.0,60272.0,0.00766345]
[1723388817560,0.232253,60279.0,60272.0,0.00766345]
[1723388817730,0.232241,60282.0,60272.0,0.00766345]
[1723388817731,0.232257,60278.0,60272.0,0.00766345]
[1723388817959,0.116134,60275.0,60272.0,0.00766345]
[1723388818651,0.1,60284.0,60272.0,0.00766345]
[1723388818652,0.232238,60283.0,60272.0,0.00766345]
[1723388818816,0.1,60284.0,60276.0,0.232261]
[1723388819000,0.00061743,60280.0,60277.0,0.0838]
[1723388819198,0.00061743,60280.0,60277.0,0.09138763]
[1723388819199,0.11674243,60280.0,60277.0,0.09138763]
[1723388819397,0.00061743,60280.0,60277.0,0.09138763]
[1723388819623,0.00061743,60280.0,60279.0,0.116126]
[1723388819998,0.00061743,60280.0,60279.0,0.35596439]
[1723388820600,0.00061743,60280.0,60279.0,0.51096439]
[1723388821003,0.00061743,60280.0,60279.0,0.97547039]
[1723388821205,0.00061743,60280.0,60279.0,1.13928531]
[1723388821677,0.00061743,60280.0,60279.0,1.14928531]
[1723388821878,0.00061743,60280.0,60279.0,1.17228531]
[1723388822428,0.00061743,60280.0,60279.0,1.2740289]
[1723388822635,0.00061743,60280.0,60279.0,1.2960289]
[1723388822870,0.00061743,60280.0,60279.0,1.5282819]
[1723388823239,0.00061743,60280.0,60279.0,1.3740289]
[1723388823462,0.00061743,60280.0,60279.0,1.27228531]
[1723388823666,0.00061743,60280.0,60279.0,1.62619486]
[1723388824255,0.00061743,60280.0,60279.0,1.60619486]
[1723388824481,0.00061743,60280.0,60279.0,1.52653831]
[1723388824907,0.00061743,60280.0,60279.0,1.6285636]
[1723388825126,0.00061743,60280.0,60279.0,1.6268636]
[1723388825329,0.000829,60296.0,60288.0,0.842763]
[1723388825529,0.000829,60296.0,60288.0,1.16347792]
[1723388825744,0.000829,60296.0,60288.0,0.77486593]
[1723388825945,0.51296492,60289.0,60288.0,0.00750601]
[1723388826162,0.116142,60271.0,60270.0,0.0859]
[1723388826476,0.348426,60271.0,60270.0,0.0859]
[1723388827035,0.348426,60271.0,60262.0,0.348474]
[1723388827216,0.08184646,60267.0,60262.0,0.348474]
[1723388827419,0.16381492,60271.0,60261.0,0.0859]
[1723388827599,0.23229,60270.0,60261.0,0.0859]
[1723388827805,0.16381492,60271.0,60261.0,0.0859]
[1723388828005,0.11615,60267.0,60261.0,0.20206]
[1723388828209,0.116144,60270.0,60263.0,0.116156]
[1723388828407,0.116151,60267.0,60261.0,0.20206]
[1723388828617,0.348428,60271.0,60262.0,0.232318]
[1723388828812,0.232288,60270.0,60262.0,0.116158]
[1723388829057,0.08184646,60268.0,60261.0,0.0859]
[1723388829457,0.08184646,60268.0,60259.0,0.0009119]
[1723388829458,0.348489,60260.0,60259.0,0.0009119]
[1723388829884,0.580815,60260.0,60259.0,0.0009119]
[1723388830094,0.51230392,60260.0,60259.0,0.0009119]
[1723388830271,1.45877096,60260.0,60259.0,0.0009119]
[1723388830809,1.39105592,60260.0,60259.0,0.0009119]
[1723388831231,1.62338192,60260.0,60259.0,0.0009119]
[1723388831534,1.70638192,60260.0,60259.0,0.0009119]
[1723388831925,1.47405592,60260.0,60259.0,0.0009119]
[1723388834998,0.116163,60260.0,60259.0,0.0009119]
[1723388835198,0.14604646,60268.0,60259.0,0.0009119]
[1723388835199,0.083,60276.0,60259.0,0.0638119]
[1723388835411,0.232318,60263.0,60259.0,0.0638119]
[1723388835621,0.348489,60260.0,60259.0,0.0009119]
[1723388835831,0.116159,60262.0,60259.0,0.0009119]
[1723388836001,0.232303,60266.0,60259.0,0.0009119]
[1723388836375,0.116158,60263.0,60259.0,0.0009119]
[1723388836572,0.2499,60270.0,60259.0,0.1170749]
[1723388836774,0.000829,60280.0,60260.0,0.24211492]
[1723388836988,0.16381492,60279.0,60261.0,0.0629]
[1723388837183,0.39606992,60279.0,60261.0,0.0629]
[1723388837426,0.16381492,60279.0,60268.0,0.232293]
[1723388837839,0.116134,60275.0,60269.0,0.116144]
[1723388838045,0.000829,60280.0,60271.0,0.0783]
[1723388838046,0.116132,60276.0,60271.0,0.0783]
[1723388838243,0.000829,60280.0,60273.0,0.116136]
[1723388838448,0.116129,60278.0,60273.0,0.116136]
[1723388838846,0.000829,60280.0,60271.0,0.0783]
[1723388839056,0.000829,60280.0,60279.0,0.489579]
[1723388839264,0.000829,60280.0,60279.0,0.721832]
[1723388839476,0.000829,60280.0,60279.0,0.489579]
[1723388839676,0.000829,60280.0,60279.0,0.257326]
[1723388839877,0.000829,60280.0,60274.0,0.116134]
[1723388839878,0.116127,60279.0,60274.0,0.116134]
[1723388840145,0.000829,60280.0,60271.0,0.0783]
[1723388840404,0.08184646,60277.0,60267.0,0.0629]
[1723388840618,0.000829,60280.0,60279.0,0.116126]
[1723388840952,0.000829,60280.0,60273.0,0.0783]
[1723388841562,0.000829,60280.0,60268.0,0.0783]
[1723388841563,0.116136,60274.0,60268.0,0.0783]
[1723388841766,0.116139,60273.0,60268.0,0.0783]
[1723388841940,0.116138,60273.0,60268.0,0.0783]
[1723388842140,0.08184646,60276.0,60268.0,0.0783]
[1723388842341,0.116153,60265.0,60264.0,0.0783]
[1723388842606,0.116153,60265.0,60259.0,0.0009119]
[1723388842607,0.348489,60260.0,60259.0,0.0009119]
[1723388842811,0.99452992,60260.0,60259.0,0.0009119]
[1723388842960,1.40985592,60260.0,60259.0,0.0009119]
[1723388843562,1.70928192,60260.0,60259.0,0.0009119]
[1723388845654,1.71928192,60260.0,60259.0,0.0009119]
[1723388845859,1.70928192,60260.0,60259.0,0.0009119]
[1723388846067,1.71928192,60260.0,60259.0,0.0009119]
[1723388846560,1.88343162,60260.0,60259.0,0.0009119]
[1723388846792,1.71928192,60260.0,60259.0,0.0009119]
[1723388847022,1.70928192,60260.0,60259.0,0.0009119]
[1723388847996,1.71928192,60260.0,60259.0,0.0009119]
[1723388848233,1.70928192,60260.0,60259.0,0.0009119]
[1723388848451,1.71928192,60260.0,60259.0,0.0009119]
[1723388849152,1.70928192,60260.0,60259.0,0.0009119]
[1723388849381,1.22705592,60260.0,60259.0,0.0009119]
[1723388849565,0.84462992,60260.0,60259.0,0.0009119]
[1723388849761,0.61230392,60260.0,60259.0,0.0009119]
[1723388850184,1.2644892,60261.0,60259.0,0.0009119]
[1723388850497,0.116148,60268.0,60260.0,0.0782]
[1723388850718,0.116154,60265.0,60260.0,0.0782]
[1723388850907,0.232301,60267.0,60260.0,0.0782]
[1723388851049,0.116152,60266.0,60261.0,0.116161]
[1723388851258,0.116158,60263.0,60260.0,0.0782]
[1723388851453,0.116161,60261.0,60260.0,0.0782]
[1723388851653,0.232301,60267.0,60260.0,0.0782]
[1723388851888,0.116154,60265.0,60260.0,0.194362]
[1723388852255,0.116161,60262.0,60260.0,0.0782]
[1723388852459,0.116163,60260.0,60259.0,0.0009119]
[1723388852859,0.51230392,60260.0,60259.0,0.0009119]
[1723388853466,0.74462992,60260.0,60259.0,0.0009119]
[1723388853671,0.51230392,60260.0,60259.0,0.0009119]
[1723388854296,0.74462992,60260.0,60259.0,0.0009119]
[1723388855483,1.2204954,60260.0,60259.0,0.0009119]
[1723388855659,1.14225592,60260.0,60259.0,0.0009119]
[1723388857236,2.18056865,60260.0,60259.0,0.0009119]
[1723388857654,1.64241511,60260.0,60259.0,0.0009119]
[1723388858062,1.53842838,60260.0,60259.0,0.0009119]
[1723388858268,1.64245374,60260.0,60259.0,0.0009119]
[1723388858745,1.56060728,60260.0,60259.0,0.0009119]
[1723388858954,0.116163,60260.0,60259.0,0.0009119]
[1723388859155,0.232319,60262.0,60259.0,0.0009119]
[1723388859376,0.11616,60262.0,60259.0,0.0009119]
[1723388859583,0.0909397,60273.0,60259.0,0.0009119]
[1723388859584,0.348489,60260.0,60259.0,0.0009119]
[1723388859784,0.97695592,60260.0,60259.0,0.0009119]
[1723388860565,1.30928192,60260.0,60259.0,0.0009119]
[1723388860762,1.39128192,60260.0,60259.0,0.0009119]
[1723388860942,1.15895592,60260.0,60259.0,0.0009119]
[1723388861622,1.16797475,60260.0,60259.0,0.0009119]
[1723388861831,1.46572454,60260.0,60259.0,0.0009119]
[1723388862037,0.84462992,60260.0,60259.0,0.0009119]
[1723388863466,1.4967602,60275.0,60260.0,0.0666]
[1723388863668,0.066491,60265.0,60260.0,0.0666]
[1723388864010,0.16381492,60270.0,60260.0,0.0666]
[1723388864011,0.116156,60264.0,60260.0,0.182762]
[1723388864367,0.116156,60264.0,60260.0,0.0666]
[1723388864574,0.116159,60262.0,60260.0,0.0666]
[1723388865605,0.232303,60266.0,60260.0,0.0666]
[1723388865934,0.116158,60263.0,60260.0,0.0666]
[1723388867753,0.232304,60266.0,60260.0,0.0666]
[1723388867965,0.08184646,60269.0,60259.0,0.0009119]
[1723388867966,0.116163,60260.0,60259.0,0.0009119]
[1723388868133,0.348489,60260.0,60259.0,0.0009119]
[1723388868313,0.116161,60261.0,60259.0,0.0009119]
[1723388868514,0.11616,60262.0,60259.0,0.0009119]
[1723388868720,0.232319,60262.0,60259.0,0.0009119]
[1723388868944,0.348489,60260.0,60259.0,0.0009119]
[1723388869147,0.97695592,60260.0,60259.0,0.0009119]
[1723388870642,1.07695592,60260.0,60259.0,0.0009119]
[1723388870845,1.30928192,60260.0,60259.0,0.0009119]
[1723388871236,1.41307123,60260.0,60259.0,0.0009119]
[1723388871431,2.82680981,60260.0,60259.0,0.0009119]
[1723388871638,2.93041638,60260.0,60259.0,0.0009119]
[1723388871837,2.95478193,60260.0,60259.0,0.0009119]
[1723388872046,2.88493255,60260.0,60259.0,0.0009119]
[1723388872294,2.78747035,60260.0,60259.0,0.0009119]
[1723388873249,2.86076886,60260.0,60259.0,0.0009119]
[1723388873433,2.47295933,60260.0,60259.0,0.0009119]
[1723388873731,2.44471163,60260.0,60259.0,0.0009119]
[1723388873883,2.34144512,60260.0,60259.0,0.0009119]
[1723388874085,2.4447225,60260.0,60259.0,0.0009119]
[1723388874719,0.84462992,60260.0,60259.0,0.0009119]
[1723388874920,1.31335768,60272.0,60262.0,0.197658]
[1723388875075,0.16381492,60271.0,60262.0,0.0815]
[1723388875299,0.348472,60263.0,60262.0,0.0815]
[1723388875497,0.580787,60263.0,60262.0,0.0815]
[1723388875701,0.348472,60263.0,60262.0,0.0815]
[1723388876593,0.116157,60263.0,60262.0,0.0815]
[1723388876925,0.116156,60264.0,60262.0,0.0815]
[1723388877330,0.116157,60263.0,60262.0,0.0815]
[1723388877769,0.116156,60264.0,60262.0,0.0815]
[1723388877976,0.232307,60266.0,60262.0,0.0815]
[1723388878171,0.116157,60263.0,60262.0,0.0815]
[1723388878515,0.348472,60263.0,60262.0,0.0815]
[1723388878868,0.696978,60260.0,60259.0,0.0009119]
[1723388879069,0.97695592,60260.0,60259.0,0.0009119]
[1723388879403,0.74462992,60260.0,60259.0,0.0009119]
[1723388879604,0.97695592,60260.0,60259.0,0.0009119]
[1723388879847,1.18114617,60260.0,60259.0,0.0009119]
[1723388880304,1.24764317,60260.0,60259.0,0.0009119]
[1723388880569,1.08589582,60260.0,60259.0,0.0009119]
[1723388880817,1.33784244,60260.0,60259.0,0.0009119]
[1723388881796,1.61904259,60260.0,60259.0,0.0009119]
[1723388882017,1.67074459,60260.0,60259.0,0.0009119]
[1723388882241,1.75014459,60260.0,60259.0,0.0009119]
[1723388882801,4.19914649,60260.0,60259.0,0.0009119]
[1723388883020,4.49070211,60260.0,60259.0,0.0009119]
[1723388883241,4.63732458,60260.0,60259.0,0.0009119]
[1723388883738,4.63732458,60260.0,60259.0,9e-07]
[1723388883959,4.31771311,60260.0,60259.0,9e-07]
[1723388884231,4.04780248,60260.0,60259.0,9e-07]
[1723388884485,3.72960399,60260.0,60259.0,9e-07]
[1723388884759,3.64775753,60260.0,60259.0,9e-07]
[1723388885018,2.75315333,60260.0,60259.0,9e-07]
[1723388885238,2.85242048,60260.0,60259.0,9e-07]
[1723388885483,2.91022755,60260.0,60259.0,9e-07]
[1723388885695,3.37021779,60260.0,60259.0,9e-07]
[1723388885930,3.51760982,60260.0,60259.0,9e-07]
[1723388886144,3.86418262,60260.0,60259.0,9e-07]
[1723388886366,3.97294355,60260.0,60259.0,9e-07]
[1723388886642,4.13709325,60260.0,60259.0,9e-07]
[1723388889051,3.99988552,60260.0,60259.0,9e-07]
[1723388889225,4.1380865,60260.0,60259.0,9e-07]
[1723388889426,4.1280865,60260.0,60259.0,9e-07]
[1723388889628,4.1380865,60260.0,60259.0,9e-07]
[1723388890036,4.1280865,60260.0,60259.0,9e-07]
[1723388890438,4.30319794,60260.0,60259.0,9e-07]
[1723388890643,4.53552394,60260.0,60259.0,9e-07]
[1723388890843,4.3704125,60260.0,60259.0,9e-07]
[1723388891051,0.232401,60241.0,60231.0,0.0001]
[1723388891324,0.348651,60232.0,60231.0,0.0001]
[1723388891521,1.24631832,60232.0,60231.0,0.0001]
[1723388891729,0.34872,60220.0,60219.0,0.079]
[1723388892134,0.5812,60220.0,60219.0,0.079]
[1723388893228,0.34872,60220.0,60219.0,0.079]
[1723388893437,0.232469,60223.0,60219.0,0.079]
[1723388893647,0.11624,60220.0,60219.0,0.079]
[1723388894058,0.34872,60220.0,60219.0,0.079]
[1723388894669,0.11624,60220.0,60219.0,0.079]
[1723388894880,0.51253492,60220.0,60219.0,0.079]
[1723388895086,0.74501492,60220.0,60219.0,0.079]
[1723388895287,0.74501492,60220.0,60212.0,0.009141]
[1723388895288,0.34875,60215.0,60214.0,0.079]
[1723388895509,0.97756492,60215.0,60214.0,0.079]
[1723388895910,0.97756492,60215.0,60212.0,0.009141]
[1723388895911,0.1439,60214.0,60212.0,0.009141]
[1723388896119,0.1439,60214.0,60211.0,0.0001]
[1723388896120,0.348766,60212.0,60211.0,0.0001]
[1723388896329,0.34879,60208.0,60198.0,0.00913]
[1723388896532,1.32755892,60208.0,60198.0,0.00913]
[1723388896746,1.56008592,60208.0,60198.0,0.00913]
[1723388897591,1.60914254,60208.0,60198.0,0.00913]
[1723388897792,0.813953,60200.0,60198.0,0.00913]
[1723388898047,1.46022592,60200.0,60198.0,0.00913]
[1723388898256,1.65545051,60200.0,60198.0,0.00913]
[1723388898670,1.60928254,60200.0,60198.0,0.00913]
[1723388899716,1.65545051,60200.0,60198.0,0.00913]
[1723388899915,1.42289251,60200.0,60198.0,0.00913]
[1723388900119,0.84520992,60200.0,60198.0,0.00913]
[1723388900323,1.09510992,60200.0,60198.0,0.00913]
[1723388900538,1.65545051,60200.0,60198.0,0.00913]
[1723388900741,1.42289251,60200.0,60198.0,0.00913]
[1723388900951,3.48377174,60200.0,60198.0,0.00913]
[1723388901161,0.93919159,60199.0,60198.0,0.0053375]
[1723388901366,1.26485297,60199.0,60198.0,0.0053375]
[1723388901623,1.48741497,60199.0,60198.0,0.0053375]
[1723388901824,1.07778192,60199.0,60198.0,0.0053375]
[1723388902253,1.12683854,60199.0,60198.0,0.0053375]
[1723388902461,1.07778192,60199.0,60198.0,0.0053375]
[1723388902678,0.74521992,60199.0,60198.0,0.0053375]
[1723388902895,0.97778192,60199.0,60198.0,0.0053375]
[1723388903569,1.21034392,60199.0,60198.0,0.0053375]
[1723388903948,1.21034392,60199.0,60191.0,0.0001]
[1723388903949,0.814061,60192.0,60191.0,0.0001]
[1723388904151,1.07787592,60192.0,60191.0,0.0001]
[1723388905783,1.07787592,60192.0,60191.0,0.0813]
[1723388906000,1.07787592,60192.0,60191.0,0.0001]
[1723388907614,1.31046492,60192.0,60191.0,0.0001]
[1723388908018,1.07787592,60192.0,60191.0,0.0001]
[1723388908455,0.28010892,60192.0,60191.0,0.1468]
[1723388908653,0.01738256,60217.0,60215.0,0.11625]
[1723388908807,0.232453,60228.0,60215.0,0.1467]
[1723388908808,0.49107874,60222.0,60215.0,0.1467]
[1723388909011,0.01737556,60224.0,60215.0,0.1467]
[1723388909227,0.08184646,60237.0,60208.0,0.01]
[1723388909228,0.16381492,60221.0,60208.0,0.0813]
[1723388909433,0.581307,60209.0,60208.0,0.0813]
[1723388909625,0.74512192,60209.0,60208.0,0.0813]
[1723388910257,0.16381492,60209.0,60193.0,0.0813]
[1723388910470,0.08184646,60215.0,60193.0,0.0813]
[1723388910471,0.08184646,60204.0,60193.0,0.0813]
[1723388910666,0.16381492,60203.0,60193.0,0.0813]
[1723388910866,0.116277,60201.0,60193.0,0.19759]
[1723388911079,0.23256,60200.0,60193.0,0.0813]
[1723388911278,0.348871,60194.0,60193.0,0.0813]
[1723388911486,0.11629,60194.0,60193.0,0.0813]
[1723388912221,0.11629,60194.0,60191.0,0.0010141]
[1723388912222,0.348883,60192.0,60191.0,0.0010141]
[1723388912434,0.84528692,60192.0,60191.0,0.0010141]
[1723388913240,1.07787592,60192.0,60191.0,0.0010141]
[1723388913975,1.22528816,60192.0,60191.0,0.0010141]
[1723388914179,1.07787592,60192.0,60191.0,0.0010141]
[1723388914587,0.84528692,60192.0,60191.0,0.0010141]
[1723388914793,0.38010892,60192.0,60191.0,0.0010141]
[1723388914999,0.61269792,60192.0,60191.0,0.0010141]
[1723388915201,1.15617592,60192.0,60191.0,0.0010141]
[1723388915403,1.39876492,60192.0,60191.0,0.0010141]
[1723388915604,1.38876492,60192.0,60191.0,0.0010141]
[1723388916033,0.84528692,60192.0,60191.0,0.0010141]
[1723388916234,0.61269792,60192.0,60191.0,0.0010141]
[1723388916434,0.84528692,60192.0,60191.0,0.0010141]
[1723388918423,1.45326492,60192.0,60191.0,0.0010141]
[1723388918665,2.04326492,60192.0,60191.0,0.0010141]
[1723388918860,2.04326492,60192.0,60171.0,0.0001]
[1723388918861,1.439697,60172.0,60171.0,0.0001]
[1723388919064,1.60351192,60172.0,60171.0,0.0001]
[1723388919270,1.70351192,60172.0,60171.0,0.0001]
[1723388919684,1.97815466,60172.0,60171.0,0.0001]
[1723388919894,1.80400496,60172.0,60171.0,0.0001]
[1723388920719,1.83700496,60172.0,60171.0,0.0001]
[1723388920962,1.78241585,60172.0,60171.0,0.0001]
[1723388921382,1.79241585,60172.0,60171.0,0.0001]
[1723388921763,3.09337596,60172.0,60171.0,0.0001]
[1723388921963,2.27407978,60172.0,60171.0,0.0001]
[1723388922115,2.30407978,60172.0,60171.0,0.0001]
[1723388922300,2.89816954,60172.0,60171.0,0.0001]
[1723388922505,2.70140747,60172.0,60171.0,0.0010141]
[1723388922704,2.71140747,60172.0,60171.0,0.0010141]
[1723388922907,2.66550354,60172.0,60171.0,0.0010141]
[1723388923107,3.56122454,60172.0,60171.0,0.0010141]
[1723388923312,3.56117353,60172.0,60171.0,0.0010141]
[1723388923531,3.18782753,60172.0,60171.0,0.0010141]
[1723388923738,3.15782753,60172.0,60171.0,0.0010141]
[1723388923949,2.45623742,60172.0,60171.0,0.0010141]
[1723388924376,2.86476342,60172.0,60171.0,0.0010141]
[1723388924580,2.94366735,60172.0,60171.0,1e-07]
[1723388924794,2.79780735,60172.0,60171.0,1e-07]
[1723388925021,1.187822,60159.0,60158.0,0.00913]
[1723388925206,3.21795185,60159.0,60158.0,0.00913]
[1723388925441,1.13422485,60159.0,60158.0,0.00913]
[1723388925601,1.07832092,60159.0,60158.0,0.00913]
[1723388926011,1.56093692,60159.0,60158.0,0.00913]
[1723388926675,1.61684085,60159.0,60158.0,0.00913]
[1723388926878,1.56093692,60159.0,60158.0,0.00913]
[1723388927298,1.32822092,60159.0,60158.0,0.00913]
[1723388928461,1.07832092,60159.0,60158.0,0.00913]
[1723388929533,0.116335,60171.0,60166.0,0.116344]
[1723388929752,0.232654,60175.0,60164.0,0.0771]
[1723388929961,0.116335,60171.0,60166.0,0.116344]
[1723388930166,0.16381492,60174.0,60165.0,0.00332374]
[1723388930167,0.116344,60166.0,60165.0,0.00332374]
[1723388930371,0.116335,60171.0,60164.0,0.0771]
[1723388930577,0.2499,60185.0,60170.0,0.0771]
[1723388930782,0.116326,60176.0,60171.0,0.00332346]
[1723388931066,0.116326,60176.0,60170.0,0.0771]
[1723388931306,0.16381492,60184.0,60170.0,0.193436]
[1723388931512,0.116326,60176.0,60171.0,0.00332336]
[1723388931815,0.116325,60176.0,60172.0,0.116332]
[1723388932034,0.116322,60178.0,60173.0,0.11633]
[1723388932229,0.49107874,60193.0,60175.0,0.0771]
[1723388932371,0.232612,60186.0,60180.0,0.0771]
[1723388932587,0.348946,60181.0,60180.0,0.0771]
[1723388932989,0.581577,60181.0,60180.0,0.0771]
[1723388933189,0.51276092,60181.0,60180.0,0.0771]
[1723388933400,0.51276092,60181.0,60175.0,0.064]
[1723388933401,0.116325,60176.0,60175.0,0.064]
[1723388933594,0.348981,60175.0,60174.0,0.0771]
[1723388934079,0.116337,60170.0,60169.0,0.1411]
[1723388934499,0.349011,60170.0,60169.0,0.1411]
[1723388934706,0.349011,60170.0,60159.0,0.232713]
[1723388934707,0.349045,60164.0,60163.0,0.1411]
[1723388934902,0.349045,60164.0,60163.0,0.0771]
[1723388935054,0.681742,60164.0,60163.0,0.0771]
[1723388935259,0.58179,60159.0,60158.0,0.08623]
[1723388935669,0.349074,60159.0,60158.0,0.08623]
[1723388935842,0.116356,60160.0,60158.0,0.08623]
[1723388936244,0.232705,60162.0,60158.0,0.08623]
[1723388936450,0.2499,60179.0,60159.0,0.00332417]
[1723388936648,0.2499,60179.0,60158.0,0.31895]
[1723388936649,0.116342,60167.0,60158.0,0.31895]
[1723388936861,0.000831,60171.0,60161.0,0.232708]
[1723388937063,0.000831,60171.0,60162.0,0.08517018]
[1723388937213,0.000831,60171.0,60164.0,0.232696]
[1723388937609,0.116337,60170.0,60165.0,0.116346]
[1723388937814,0.000831,60171.0,60166.0,0.116343]
[1723388938018,0.000831,60171.0,60167.0,0.00332369]
[1723388938216,0.000831,60171.0,60170.0,0.257437]
[1723388938414,0.000831,60171.0,60170.0,0.490111]
[1723388939322,0.000831,60171.0,60170.0,0.722785]
[1723388940126,0.000831,60171.0,60170.0,0.955459]
[1723388940523,0.000831,60197.0,60188.0,0.0771]
[1723388940683,0.83997274,60190.0,60189.0,0.064]
[1723388940842,0.000831,60197.0,60189.0,0.064]
[1723388940843,0.116297,60191.0,60189.0,0.064]
[1723388941036,0.117116,60197.0,60189.0,0.064]
[1723388941272,0.117116,60197.0,60196.0,0.348859]
[1723388941273,0.000831,60197.0,60196.0,0.348859]
[1723388941637,0.16464592,60197.0,60189.0,0.064]
[1723388941820,0.16464592,60197.0,60188.0,0.0771]
[1723388941821,0.58149,60190.0,60188.0,0.0771]
[1723388942014,0.16464592,60197.0,60182.0,0.0771]
[1723388942015,0.348934,60183.0,60182.0,0.0771]
[1723388942845,0.24566138,60189.0,60182.0,0.0771]
[1723388943049,0.116311,60183.0,60182.0,0.0771]
[1723388943410,0.24566138,60189.0,60177.0,0.0779]
[1723388943411,0.116321,60178.0,60177.0,0.0779]
[1723388943618,0.24566138,60189.0,60177.0,0.0779]
[1723388943890,0.232613,60186.0,60177.0,0.0779]
[1723388944106,0.116331,60173.0,60169.0,0.194238]
[1723388944311,0.26381492,60185.0,60169.0,0.0779]
[1723388944479,0.116328,60175.0,60169.0,0.0779]
[1723388944852,0.116319,60179.0,60175.0,0.116326]
[1723388945077,0.116319,60180.0,60173.0,0.232661]
[1723388945305,0.1,60185.0,60172.0,0.0638]
[1723388945306,0.116323,60178.0,60172.0,0.0638]
[1723388945503,0.1,60185.0,60172.0,0.0638]
[1723388945504,0.232628,60182.0,60172.0,0.0638]
[1723388945707,0.116327,60175.0,60170.0,0.116336]
[1723388945913,0.11633,60174.0,60169.0,0.0779]
[1723388946115,0.116325,60176.0,60171.0,0.116334]
[1723388946335,0.116328,60175.0,60169.0,0.0779]
[1723388946539,0.349011,60170.0,60169.0,0.0779]
[1723388946757,0.349039,60165.0,60164.0,0.0779]
[1723388946949,0.232699,60164.0,60160.0,0.0638]
[1723388947166,0.232697,60164.0,60160.0,0.0638]
[1723388947364,0.116358,60159.0,60158.0,0.08703]
[1723388947573,0.349074,60159.0,60158.0,0.00913]
[1723388947744,0.58179,60159.0,60158.0,0.00913]
[1723388948148,1.03892092,60159.0,60158.0,0.00913]
[1723388948349,0.80620492,60159.0,60158.0,0.00913]
[1723388948553,0.90296006,60159.0,60158.0,0.00913]
[1723388948749,1.71829206,60159.0,60158.0,0.00913]
[1723388949331,1.69933692,60159.0,60158.0,0.00913]
[1723388949723,2.840987,60159.0,60158.0,0.00913]
[1723388949922,2.30064192,60159.0,60158.0,0.00913]
[1723388950125,2.09488712,60159.0,60158.0,0.00913]
[1723388950277,2.00355512,60159.0,60158.0,0.00913]
[1723388950481,1.8215822,60159.0,60158.0,0.00913]
[1723388950681,1.96902943,60159.0,60158.0,0.00913]
[1723388950893,2.77125843,60159.0,60158.0,0.00913]
[1723388951094,2.78125843,60159.0,60158.0,0.00913]
[1723388951307,3.01397443,60159.0,60158.0,0.00913]
[1723388951681,3.73397443,60159.0,60158.0,0.00913]
[1723388952314,0.9662,60152.0,60151.0,0.58565728]
[1723388952638,0.9662,60152.0,60151.0,0.57732897]
[1723388952639,1.79994012,60152.0,60151.0,0.57732897]
[1723388952770,1.80588712,60152.0,60151.0,0.57732897]
[1723388952980,0.80947192,60152.0,60151.0,0.57732897]
[1723388953175,0.581857,60152.0,60151.0,0.57732897]
[1723388953400,0.74567192,60152.0,60151.0,0.57732897]
[1723388953958,1.07676888,60152.0,60151.0,0.57732897]
[1723388954165,1.05621492,60152.0,60151.0,0.56567097]
[1723388954368,1.28895792,60152.0,60151.0,0.56567097]
[1723388954571,1.05621492,60152.0,60151.0,0.56567097]
[1723388954769,1.15621492,60152.0,60151.0,0.56567097]
[1723388955400,1.38895792,60152.0,60151.0,0.56567097]
[1723388955595,1.15621492,60152.0,60151.0,0.56567097]
[1723388956422,1.38895792,60152.0,60151.0,0.56567097]
[1723388956633,1.15621492,60152.0,60151.0,0.56567097]
[1723388957060,1.15621492,60152.0,60151.0,0.55234557]
[1723388957474,1.38895792,60152.0,60151.0,0.55234557]
[1723388958080,1.55310762,60152.0,60151.0,0.55234557]
[1723388958286,1.55310762,60152.0,60151.0,0.53634557]
[1723388958691,1.61690762,60152.0,60151.0,0.53634557]
[1723388958996,1.45275792,60152.0,60151.0,0.53634557]
[1723388959201,1.63211792,60152.0,60151.0,0.53634557]
[1723388959408,1.63211792,60152.0,60068.0,0.04327747]
[1723388959409,0.23299,60089.0,60068.0,0.04327747]
[1723388959610,0.0978,60111.0,60075.0,0.0652]
[1723388959611,0.01,60095.0,60075.0,0.0652]
[1723388959821,0.02,60104.0,60080.0,0.2499]
[1723388959822,0.01,60104.0,60080.0,0.2499]
[1723388960025,0.01,60104.0,60068.0,0.0025595]
[1723388960026,0.116475,60099.0,60089.0,0.1435]
[1723388960250,0.232942,60101.0,60091.0,0.0783]
[1723388960453,0.262958,60097.0,60091.0,0.0533]
[1723388960660,0.126488,60092.0,60091.0,0.0533]
[1723388960883,0.01,60092.0,60091.0,0.0533]
[1723388961092,0.126488,60092.0,60091.0,0.0533]
[1723388961306,0.148488,60092.0,60091.0,0.0533]
[1723388961521,0.02,60086.0,60084.0,0.0652]
[1723388961717,0.232981,60091.0,60084.0,0.0652]
[1723388961718,0.03,60085.0,60084.0,0.0652]
[1723388961929,0.02,60085.0,60084.0,0.0652]
[1723388962136,0.146501,60085.0,60084.0,0.0652]
[1723388962343,0.01,60077.0,60076.0,0.0652]
[1723388962591,0.09184646,60077.0,60071.0,0.0653]
[1723388962786,0.01,60083.0,60072.0,0.00332872]
[1723388962977,0.09140483,60087.0,60073.0,0.16381492]
[1723388963190,0.116481,60096.0,60075.0,0.0652]
[1723388963390,0.09184646,60091.0,60077.0,0.233034]
[1723388963592,0.09184646,60091.0,60082.0,0.0756]
[1723388963799,0.08184646,60091.0,60083.0,0.23633806]
[1723388964001,0.08184646,60091.0,60084.0,0.233005]
[1723388964210,0.08184646,60091.0,60090.0,0.116491]
[1723388964421,0.234931,60104.0,60090.0,0.116491]
[1723388964422,0.01,60118.0,60112.0,0.116448]
[1723388964621,0.08184646,60113.0,60107.0,0.0641]
[1723388964829,0.01,60108.0,60107.0,0.0641]
[1723388965038,0.126457,60108.0,60107.0,0.0641]
[1723388965244,0.09184646,60113.0,60107.0,0.0641]